bitfinex/quotes_SOLUSD_20251216
["timestamp","ask_amount","ask_price","bid_price","bid_amount"]
[1765894291990,13.34336112,127.66,127.65,0.2]
[1765894292186,19.57978115,127.69,127.65,0.2]
[1765894292391,13.34336112,127.66,127.65,0.2]
[1765894292915,17.0020802,127.68,127.65,0.2]
[1765894293094,13.34336112,127.66,127.65,0.2]
[1765894293972,21.17666834,127.66,127.65,0.2]
[1765894294169,13.34336112,127.66,127.65,0.2]
[1765894295398,16.39294137,127.67,127.65,0.2]
[1765894295600,13.34336112,127.66,127.65,0.2]
[1765894296603,17.00294137,127.67,127.65,0.2]
[1765894296788,13.34336112,127.66,127.65,0.2]
[1765894297105,21.90336112,127.66,127.65,0.2]
[1765894297784,0.61,127.73,127.66,0.67]
[1765894298101,13.34336112,127.67,127.65,0.2]
[1765894298288,13.34336112,127.66,127.65,0.2]
[1765894298601,41.06078677,127.72,127.66,0.67]
[1765894298782,13.34336112,127.69,127.66,0.67]
[1765894299100,13.34336112,127.71,127.65,49.77199932]
[1765894299293,13.34336112,127.71,127.67,0.67]
[1765894299499,13.34336112,127.7,127.67,0.67]
[1765894300786,7.83042888,127.71,127.67,0.67]
[1765894301107,13.95336112,127.71,127.67,8.50256931]
[1765894301399,13.34336112,127.7,127.67,8.50256931]
[1765894301600,13.34336112,127.7,127.67,7.83256931]
[1765894301990,13.34336112,127.71,127.68,0.67]
[1765894302378,13.34336112,127.71,127.67,8.50256931]
[1765894302577,13.34336112,127.69,127.66,16.64299781]
[1765894302782,13.34336112,127.69,127.66,8.50305289]
[1765894303195,13.95336112,127.68,127.65,0.2]
[1765894303593,8.56,127.7,127.65,0.2]
[1765894303797,13.34336112,127.67,127.65,0.2]
[1765894303996,7.8320802,127.68,127.65,0.2]
[1765894304306,13.34336112,127.67,127.65,0.2]
[1765894306105,13.34336112,127.66,127.65,0.2]
[1765894307105,13.95336112,127.66,127.65,0.2]
[1765894308204,30.34666834,127.66,127.65,0.2]
[1765894308402,16.39330722,127.66,127.65,0.2]
[1765894309808,8.56,127.66,127.65,0.2]
[1765894310716,16.39290001,127.67,127.65,0.2]
[1765894310891,8.56,127.67,127.65,0.2]
[1765894312416,8.56,127.67,127.65,0.87]
[1765894312616,0.61,127.69,127.65,8.70378715]
[1765894312785,22.51336112,127.69,127.65,8.70378715]
[1765894312985,13.34336112,127.67,127.65,0.2]
[1765894314115,21.90336112,127.67,127.65,0.2]
[1765894314289,16.39279814,127.67,127.65,0.2]
[1765894314490,29.73615926,127.67,127.65,0.2]
[1765894314690,16.39279814,127.67,127.65,0.2]
[1765894314883,29.73615926,127.67,127.65,0.2]
[1765894315088,30.34615926,127.67,127.65,0.2]
[1765894315396,25.22151317,127.67,127.65,0.2]
[1765894315593,44.80324732,127.67,127.65,0.2]
[1765894315993,115.5470912,127.7,127.65,0.2]
[1765894315994,8.56,127.66,127.65,0.2]
[1765894316187,24.61104138,127.68,127.65,0.87]
[1765894316706,122.68976878,127.69,127.66,0.67]
[1765894316707,118.55045323,127.69,127.66,0.67]
[1765894317010,8.21871503,127.68,127.65,8.70363465]
[1765894317214,8.82871503,127.68,127.65,0.2]
[1765894317415,8.21871503,127.67,127.65,0.2]
[1765894317717,8.21871503,127.68,127.64,0.67]
[1765894318201,138.47040528,127.69,127.64,0.67]
[1765894318408,8.82871503,127.68,127.62,21.46580623]
[1765894318609,7.83269366,127.67,127.64,0.67]
[1765894318830,16.39269366,127.67,127.64,0.67]
[1765894319422,8.56,127.67,127.65,0.67]
[1765894320215,16.77871503,127.67,127.64,0.67]
[1765894320818,7.83330722,127.66,127.63,7.83494788]
[1765894321021,7.83330722,127.66,127.63,8.50494788]
[1765894321189,16.39292117,127.67,127.64,7.83452171]
[1765894321492,8.56,127.7,127.66,0.67]
[1765894321702,36.23347092,127.72,127.66,8.21871503]
[1765894321917,127.10796798,127.73,127.68,0.67]
[1765894322211,25.21796798,127.73,127.68,0.67]
[1765894322415,8.21871503,127.72,127.68,0.67]
[1765894322583,7.82974988,127.72,127.68,8.50160307]
[1765894322787,8.82871503,127.71,127.67,8.50224853]
[1765894323010,8.82871503,127.69,127.65,8.5037256]
[1765894323190,8.21871503,127.69,127.65,8.5037256]
[1765894323389,8.21871503,127.69,127.65,7.8337256]
[1765894323715,8.21871503,127.69,127.66,0.67]
[1765894324014,8.21871503,127.69,127.66,8.50320293]
[1765894324225,27.40381815,127.72,127.66,7.83320293]
[1765894324526,44.79253318,127.72,127.68,0.66]
[1765894324898,7.82974988,127.72,127.69,0.66]
[1765894325098,27.40381815,127.72,127.68,0.66]
[1765894325316,44.18253318,127.72,127.68,0.66]
[1765894325711,8.21871503,127.71,127.66,7.83318561]
[1765894326034,8.21871503,127.71,127.65,8.80994492]
[1765894326035,8.21871503,127.69,127.65,8.80994492]
[1765894326204,8.56,127.69,127.65,9.46994492]
[1765894326525,0.61,127.67,127.62,9.66994492]
[1765894326696,8.56,127.67,127.64,8.80994492]
[1765894326897,16.39271589,127.67,127.64,9.46994492]
[1765894327100,8.56,127.67,127.64,17.30437559]
[1765894327326,8.21871503,127.67,127.64,0.66]
[1765894327713,8.21871503,127.67,127.63,8.49494283]
[1765894327914,17.0020802,127.68,127.64,0.66]
[1765894328129,8.21871503,127.67,127.64,0.66]
[1765894328315,36.5822807,127.68,127.64,0.66]
[1765894328510,8.21871503,127.67,127.64,0.66]
[1765894328710,7.83148431,127.69,127.65,8.87871503]
[1765894328928,7.83085356,127.7,127.66,7.83330722]
[1765894329228,16.39085356,127.7,127.66,7.83330722]
[1765894330119,7.83085356,127.7,127.66,7.83330722]
[1765894330320,8.82871503,127.69,127.65,0.66]
[1765894330522,8.21871503,127.69,127.65,8.49350225]
[1765894330840,8.82871503,127.69,127.65,9.46994492]
[1765894331209,7.8320802,127.68,127.65,9.46994492]
[1765894331409,7.8320802,127.68,127.66,0.66]
[1765894331722,16.05079523,127.68,127.65,0.66]
[1765894331918,16.05079523,127.68,127.63,8.56]
[1765894331919,0.61,127.67,127.63,8.56]
[1765894332104,9.17,127.67,127.63,9.46994492]
[1765894332303,16.77871503,127.67,127.64,0.66]
[1765894332705,16.77871503,127.67,127.63,16.64507884]
[1765894332911,16.77871503,127.67,127.64,0.66]
[1765894333113,8.56,127.67,127.64,0.66]
[1765894333329,24.6119547,127.67,127.64,0.66]
[1765894333936,8.21871503,127.66,127.63,0.66]
[1765894334127,8.21871503,127.65,127.62,0.2]
[1765894334311,8.82871503,127.65,127.62,0.2]
[1765894334513,8.21871503,127.64,127.62,0.2]
[1765894334715,8.21871503,127.63,127.62,0.2]
[1765894334945,8.56,127.64,127.62,0.2]
[1765894335110,8.21871503,127.63,127.62,0.2]
[1765894335463,16.6638635,127.63,127.62,0.2]
[1765894336142,7.83479809,127.64,127.62,0.86]
[1765894336344,7.83479809,127.64,127.62,0.2]
[1765894336539,24.61351312,127.64,127.62,0.2]
[1765894337112,16.39479809,127.64,127.62,0.86]
[1765894337345,8.56,127.67,127.63,0.66]
[1765894337633,0.99999999,127.74,127.63,0.66]
[1765894337634,0.61,127.71,127.63,0.66]
[1765894337815,8.21871503,127.69,127.65,0.66]
[1765894338345,8.21871503,127.68,127.65,0.66]
[1765894338641,8.82871503,127.69,127.65,0.66]
[1765894338844,13.0470912,127.7,127.65,0.66]
[1765894339059,16.04834233,127.72,127.66,17.02865995]
[1765894339212,7.8296273,127.72,127.69,0.66]
[1765894339416,16.04834233,127.72,127.69,0.66]
[1765894340227,16.04180825,127.72,127.69,0.66]
[1765894340946,7.8296273,127.72,127.69,0.66]
[1765894342531,7.82922367,127.73,127.7,0.66]
[1765894342725,16.38922367,127.73,127.7,0.66]
[1765894342922,24.60140462,127.73,127.7,0.66]
[1765894343536,24.60140462,127.73,127.68,7.8318038]
[1765894343730,8.21218095,127.72,127.69,0.66]
[1765894344452,44.78394043,127.73,127.69,0.66]
[1765894344653,8.21218095,127.72,127.69,0.66]
[1765894345221,28.01175948,127.73,127.69,0.66]
[1765894345418,8.56,127.71,127.69,0.66]
[1765894346245,7.82922367,127.73,127.7,0.66]
[1765894346620,7.82840144,127.74,127.7,0.66]
[1765894346856,7.82793509,127.75,127.71,0.66]
[1765894347057,8.56,127.74,127.71,0.66]
[1765894348058,8.21218095,127.73,127.69,8.49130796]
[1765894348252,8.82218095,127.73,127.69,7.83130796]
[1765894348454,8.82218095,127.73,127.69,0.66]
[1765894348759,8.21218095,127.72,127.68,0.66]
[1765894349054,8.56,127.71,127.68,0.66]
[1765894349358,8.56,127.71,127.69,0.66]
[1765894349554,8.56,127.71,127.69,8.49144038]
[1765894349933,8.56,127.72,127.69,8.49144038]
[1765894350249,25.21188886,127.72,127.68,0.66]
[1765894350466,8.21218095,127.71,127.68,0.66]
[1765894350621,8.21218095,127.7,127.66,9.46994492]
[1765894351021,8.82218095,127.71,127.67,0.66]
[1765894351250,8.82218095,127.71,127.67,8.49262525]
[1765894351442,8.21218095,127.71,127.67,8.49262525]
[1765894351648,7.82901432,127.73,127.67,8.87218095]
[1765894351851,16.38901432,127.73,127.7,0.66]
[1765894352428,19.56898485,127.76,127.71,0.66]
[1765894352624,19.56898485,127.76,127.7,8.49076069]
[1765894352625,44.16971568,127.75,127.7,8.49076069]
[1765894352852,36.56753473,127.75,127.7,0.66]
[1765894353059,8.21218095,127.74,127.7,0.66]
[1765894353551,8.82218095,127.73,127.69,0.66]
[1765894353727,8.56,127.72,127.69,8.49146451]
[1765894353928,8.56,127.72,127.7,0.72]
[1765894354571,8.56,127.73,127.7,8.55080653]
[1765894354873,8.56,127.73,127.71,0.72]
[1765894359261,24.60145774,127.73,127.69,8.55129975]
[1765894359561,25.21145774,127.73,127.69,0.72]
[1765894359742,8.82218095,127.72,127.68,9.52994492]
[1765894359930,17.38218095,127.71,127.67,0.72]
[1765894360134,0.61,127.7,127.66,0.72]
[1765894360341,32.61962701,127.73,127.64,19.58536296]
[1765894360342,8.21218095,127.68,127.64,8.55422431]
[1765894360537,8.56,127.68,127.64,7.83422431]
[1765894360751,8.56,127.68,127.65,0.72]
[1765894361061,16.77218095,127.69,127.65,0.72]
[1765894361257,17.38218095,127.69,127.65,0.72]
[1765894361765,7.8296273,127.72,127.66,8.21218095]
[1765894361967,16.3896273,127.72,127.69,0.72]
[1765894362265,8.21218095,127.71,127.68,0.72]
[1765894362955,24.60180825,127.72,127.68,0.72]
[1765894363160,25.21180825,127.72,127.68,0.72]
[1765894363949,24.60180825,127.72,127.69,0.72]
[1765894364150,16.3896273,127.72,127.69,0.72]
[1765894364667,7.8296273,127.72,127.69,0.72]
[1765894364868,8.21218095,127.74,127.69,0.72]
[1765894365057,8.56,127.73,127.69,0.72]
[1765894365772,29.43507603,127.75,127.71,0.72]
[1765894365956,16.38798483,127.75,127.72,0.72]
[1765894366652,0.61,127.74,127.7,8.80994492]
[1765894366852,0.61,127.7,127.65,8.80994492]
[1765894367053,8.56,127.69,127.66,0.72]
[1765894367263,16.77218095,127.69,127.66,0.72]
[1765894367448,8.56,127.69,127.66,0.72]
[1765894367650,16.77218095,127.69,127.66,0.72]
[1765894367995,24.60381019,127.69,127.66,0.72]
[1765894368166,16.39162924,127.69,127.66,0.72]
[1765894368366,24.60381019,127.69,127.66,0.72]
[1765894370680,16.39162924,127.69,127.66,0.72]
[1765894370869,24.60381019,127.69,127.66,0.72]
[1765894371685,16.39162924,127.69,127.66,7.83323211]
[1765894371871,8.56,127.69,127.67,0.72]
[1765894372070,8.56,127.7,127.68,0.72]
[1765894372478,16.77218095,127.71,127.68,0.72]
[1765894373169,8.21218095,127.7,127.67,8.55239614]
[1765894373363,8.21218095,127.69,127.66,8.80994492]
[1765894373569,8.21218095,127.69,127.67,0.72]
[1765894374286,8.21218095,127.69,127.65,16.6436647]
[1765894374472,8.21218095,127.69,127.66,0.72]
[1765894374668,16.04370081,127.69,127.66,0.72]
[1765894374868,16.77218095,127.68,127.65,9.52994492]
[1765894375074,8.21218095,127.66,127.62,17.56567676]
[1765894375566,16.77218095,127.65,127.62,16.84567676]
[1765894375883,8.56,127.65,127.62,0.2]
[1765894376082,8.21218095,127.64,127.62,0.92]
[1765894376284,16.77218095,127.64,127.62,0.2]
[1765894376583,8.56,127.65,127.62,0.2]
[1765894376897,8.21218095,127.64,127.62,0.2]
[1765894377366,13.36193718,127.64,127.62,0.2]
[1765894377572,8.56,127.65,127.62,0.2]
[1765894377774,13.36193718,127.64,127.62,0.2]
[1765894378164,21.19704506,127.64,127.62,0.2]
[1765894378566,13.36193718,127.63,127.62,0.2]
[1765894380282,29.75708565,127.63,127.62,0.2]
[1765894380463,8.56,127.63,127.62,0.2]
[1765894380981,13.36193718,127.67,127.63,0.72]
[1765894381182,29.75463084,127.67,127.63,0.72]
[1765894381487,34.24074944,127.69,127.65,0.72]
[1765894381686,42.80074944,127.69,127.65,0.72]
[1765894382190,13.36193718,127.68,127.65,0.72]
[1765894382370,13.36193718,127.68,127.65,8.55370206]
[1765894382890,29.75365824,127.69,127.65,7.83370206]
[1765894383202,19.57504919,127.72,127.66,0.72]
[1765894383364,8.56,127.71,127.66,0.72]
[1765894383564,21.92193718,127.71,127.66,0.72]
[1765894384079,8.56,127.71,127.68,0.71]
[1765894384294,21.19120041,127.73,127.69,8.80994492]
[1765894384502,7.82926323,127.73,127.7,0.71]
[1765894384673,8.56,127.73,127.7,0.71]
[1765894384864,16.38914713,127.73,127.7,0.71]
[1765894385797,29.75108431,127.73,127.7,0.71]
[1765894385983,29.75108431,127.73,127.69,8.80994492]
[1765894386187,49.93362012,127.73,127.69,0.71]
[1765894386687,49.32362012,127.73,127.69,0.71]
[1765894387287,49.32362012,127.73,127.69,7.83146381]
[1765894387485,29.75108431,127.73,127.7,0.71]
[1765894387684,7.82855633,127.74,127.7,0.71]
[1765894387885,21.92193718,127.73,127.69,7.83146381]
[1765894388090,21.92193718,127.73,127.69,0.71]
[1765894388396,21.19266657,127.71,127.67,17.35243291]
[1765894388577,21.19266657,127.71,127.68,0.71]
[1765894388578,29.75266657,127.71,127.68,0.71]
[1765894388900,16.39072939,127.71,127.68,0.71]
[1765894389078,29.75266657,127.71,127.68,0.71]
[1765894390172,16.39072939,127.71,127.68,0.71]
[1765894390372,29.75266657,127.71,127.68,0.71]
[1765894391200,13.97193718,127.7,127.66,8.54309554]
[1765894391389,13.36193718,127.7,127.66,8.54309554]
[1765894391700,8.56,127.69,127.67,0.71]
[1765894393181,7.83104198,127.7,127.67,8.54268666]
[1765894393385,26.40902838,127.72,127.68,0.71]
[1765894393585,8.56,127.71,127.68,0.71]
[1765894394401,8.56,127.71,127.69,8.54146683]
[1765894394606,8.56,127.71,127.69,0.71]
[1765894395008,21.1916227,127.72,127.69,0.71]
[1765894395183,16.38968552,127.72,127.69,0.71]
[1765894395385,29.7516227,127.72,127.69,0.71]
[1765894396206,27.39615813,127.76,127.71,0.71]
[1765894396387,21.92193718,127.75,127.71,0.71]
[1765894396779,13.97193718,127.74,127.69,8.5413123]
[1765894397010,13.36193718,127.73,127.7,0.71]
[1765894397189,22.53193718,127.73,127.68,25.91166661]
[1765894397392,13.36193718,127.72,127.68,0.71]
[1765894397722,21.92193718,127.71,127.68,0.71]
[1765894398023,29.75243098,127.71,127.68,0.71]
[1765894398194,13.36193718,127.7,127.67,0.71]
[1765894398585,36.57609477,127.71,127.67,0.71]
[1765894398785,13.36193718,127.7,127.67,0.71]
[1765894399109,36.57609477,127.71,127.67,0.71]
[1765894399322,13.36193718,127.7,127.67,0.71]
[1765894399524,13.36193718,127.7,127.66,16.6431702]
[1765894399830,8.56,127.69,127.67,0.71]
[1765894400198,16.39161989,127.69,127.67,0.71]
[1765894400618,30.36355707,127.69,127.65,0.71]
[1765894400830,13.36193718,127.68,127.64,7.83401916]
[1765894401008,13.36193718,127.68,127.64,16.64396408]
[1765894401210,13.36193718,127.68,127.65,0.71]
[1765894401518,29.75355707,127.69,127.65,7.83380018]
[1765894401727,21.19355707,127.69,127.66,8.54305863]
[1765894401894,21.19300786,127.7,127.67,7.8326569]
[1765894402092,29.75300786,127.7,127.67,8.5426569]
[1765894402505,29.75300786,127.7,127.66,8.54302382]
[1765894402696,29.75300786,127.7,127.67,0.71]
[1765894403099,30.36300786,127.7,127.66,8.54302382]
[1765894403736,29.75300786,127.7,127.66,8.54302382]
[1765894404117,30.36300786,127.7,127.66,8.54302382]
[1765894404513,13.36193718,127.67,127.65,0.71]
[1765894404698,36.57820458,127.7,127.65,0.71]
[1765894404699,21.92193718,127.68,127.65,0.71]
[1765894405028,28.01820458,127.7,127.67,0.71]
[1765894405029,7.83107068,127.7,127.67,0.71]
[1765894405225,29.75300786,127.7,127.67,0.71]
[1765894405822,29.75300786,127.7,127.66,8.80994492]
[1765894406027,29.75300786,127.7,127.67,0.71]
[1765894406521,30.36300786,127.7,127.66,9.51994492]
[1765894406728,13.36193718,127.69,127.65,7.83379862]
[1765894406904,13.97193718,127.69,127.65,8.54379862]
[1765894407106,13.36193718,127.69,127.66,0.71]
[1765894407507,13.36193718,127.69,127.66,8.54327282]
[1765894407919,36.57820458,127.7,127.65,16.64360207]
[1765894408102,13.36193718,127.69,127.66,0.71]
[1765894408828,8.56,127.7,127.67,0.71]
[1765894410314,16.39087202,127.7,127.68,0.71]
[1765894410616,8.56,127.7,127.68,0.71]
[1765894413148,22.51769851,127.75,127.7,0.71]
[1765894413310,13.34769851,127.74,127.7,0.71]
[1765894413631,13.95769851,127.74,127.7,0.71]
[1765894414043,7.82901432,127.73,127.7,0.71]
[1765894414221,16.38901432,127.73,127.7,0.71]
[1765894416434,29.73671283,127.73,127.7,0.71]
[1765894416621,8.56,127.73,127.71,0.71]
[1765894417030,8.56,127.73,127.69,17.35122444]
[1765894417031,30.34673193,127.73,127.69,17.35122444]
[1765894417210,16.99903342,127.73,127.69,0.71]
[1765894417411,30.34673193,127.73,127.69,0.71]
[1765894418239,30.34673193,127.73,127.69,8.54135951]
[1765894418441,13.34769851,127.7,127.67,8.54234788]
[1765894418619,8.56,127.71,127.69,0.71]
[1765894419136,13.95769851,127.7,127.66,9.51994492]
[1765894419323,13.34769851,127.7,127.67,0.71]
[1765894419638,13.34769851,127.7,127.67,8.54238141]
[1765894419821,13.34769851,127.7,127.67,7.83238141]
[1765894420010,13.34769851,127.68,127.65,0.71]
[1765894420412,13.34769851,127.68,127.65,8.54361452]
[1765894420620,17.00167873,127.69,127.66,0.71]
[1765894420621,29.73937724,127.69,127.66,0.71]
[1765894421244,8.56,127.69,127.66,0.71]
[1765894421946,7.83114974,127.7,127.66,8.80994492]
[1765894422158,16.39114974,127.7,127.67,0.71]
[1765894423029,13.34769851,127.71,127.68,0.71]
[1765894423345,8.56,127.71,127.68,0.71]
[1765894423544,8.56,127.71,127.67,8.54254504]
[1765894423545,13.34769851,127.7,127.67,8.54254504]
[1765894424120,13.34769851,127.7,127.67,0.71]
[1765894424651,13.34769851,127.69,127.66,0.71]
[1765894424941,0.61,127.65,127.62,0.2]
[1765894425152,21.90769851,127.64,127.62,0.2]
[1765894425446,13.95769851,127.63,127.62,0.2]
[1765894425644,13.34769851,127.63,127.62,0.2]
[1765894425852,21.90769851,127.64,127.62,0.2]
[1765894426348,8.56,127.66,127.63,0.71]
[1765894426532,21.90769851,127.68,127.64,0.71]
[1765894427352,29.73981386,127.68,127.65,0.71]
[1765894427856,13.34769851,127.7,127.67,0.71]
[1765894428020,21.90769851,127.7,127.67,0.71]
[1765894428467,22.51769851,127.7,127.66,9.51994492]
[1765894429257,22.51769851,127.7,127.66,17.35287626]
[1765894429624,30.34870791,127.7,127.66,17.35287626]
[1765894431231,135.12197452,127.72,127.67,0.71]
[1765894431232,21.17757143,127.72,127.67,0.71]
[1765894431547,21.17757143,127.72,127.66,21.18062985]
[1765894431548,8.56,127.71,127.69,0.71]
[1765894431745,21.90769851,127.71,127.67,0.71]
[1765894431928,8.56,127.72,127.7,0.71]
[1765894432338,13.34769851,127.73,127.7,0.71]
[1765894432552,29.73633056,127.74,127.7,0.71]
[1765894433127,29.73633056,127.74,127.7,8.54076833]
[1765894433128,8.56,127.73,127.7,8.54076833]
[1765894433637,8.56,127.73,127.71,0.71]
[1765894434522,8.56,127.73,127.69,16.64111433]
[1765894434728,21.90769851,127.73,127.7,0.71]
[1765894436357,29.73710237,127.73,127.7,0.71]
[1765894436653,16.38940386,127.73,127.7,0.71]
[1765894436864,29.73710237,127.73,127.7,0.71]
[1765894437357,24.60018236,127.73,127.7,0.71]
[1765894437534,24.60018236,127.73,127.7,8.54073585]
[1765894438236,16.04018236,127.73,127.7,0.71]
[1765894438849,36.57193967,127.73,127.68,0.71]
[1765894439142,8.2107785,127.72,127.69,0.71]
[1765894439333,36.57193967,127.73,127.69,0.71]
[1765894439536,8.2107785,127.72,127.69,0.71]
[1765894440364,16.65063601,127.72,127.68,17.35168964]
[1765894440663,16.04063601,127.72,127.69,0.71]
[1765894440827,0.61,127.7,127.66,8.80994492]
[1765894441027,0.61,127.7,127.67,0.71]
[1765894441028,8.2107785,127.7,127.67,0.71]
[1765894441245,17.3807785,127.71,127.67,0.71]
[1765894441434,7.82937083,127.73,127.69,9.51994492]
[1765894441639,7.82937083,127.73,127.7,0.71]
[1765894441857,8.2107785,127.72,127.67,8.54238988]
[1765894442058,8.2107785,127.7,127.66,16.64305393]
[1765894442239,24.6027608,127.69,127.65,8.54366345]
[1765894442556,17.0019823,127.69,127.65,0.71]
[1765894442856,8.8207785,127.67,127.63,9.51994492]
[1765894443158,16.0427608,127.69,127.64,0.71]
[1765894443355,24.6027608,127.69,127.64,0.71]
[1765894443959,7.83029449,127.71,127.67,0.66]
[1765894444128,8.56,127.71,127.69,0.66]
[1765894444958,0.61,127.73,127.69,8.49096838]
[1765894445139,8.2107785,127.72,127.68,16.64178052]
[1765894445346,8.2107785,127.72,127.69,0.66]
[1765894446266,16.99909896,127.73,127.69,0.66]
[1765894446466,8.2107785,127.71,127.68,0.66]
[1765894446765,16.04128064,127.71,127.68,0.66]
[1765894447441,7.83050214,127.71,127.68,0.66]
[1765894447641,16.04128064,127.71,127.68,0.66]
[1765894448368,16.04128064,127.71,127.68,8.49203148]
[1765894448756,8.2107785,127.73,127.69,0.66]
[1765894448965,29.08637352,127.74,127.71,0.66]
[1765894449361,20.87559502,127.74,127.71,0.66]
[1765894449563,29.08637352,127.74,127.71,0.66]
[1765894450070,16.03928232,127.74,127.71,0.66]
[1765894451258,7.82816422,127.75,127.72,0.66]
[1765894451447,16.64894272,127.75,127.71,8.49019005]
[1765894451840,8.56,127.77,127.73,7.82851027]
[1765894452045,24.59672935,127.78,127.74,0.66]
[1765894452373,25.20672935,127.78,127.74,0.66]
[1765894452673,8.2107785,127.77,127.74,0.66]
[1765894453173,16.99595085,127.78,127.74,0.66]
[1765894453470,16.0373594,127.77,127.74,0.66]
[1765894454365,16.0373594,127.77,127.73,7.82851027]
[1765894454576,16.0373594,127.77,127.74,0.66]
[1765894455171,19.66131667,127.81,127.76,0.66]
[1765894455344,8.8207785,127.77,127.73,8.48874233]
[1765894455672,9.17,127.78,127.74,0.66]
[1765894455855,8.2107785,127.77,127.74,0.66]
[1765894456866,16.03743667,127.77,127.74,0.66]
[1765894457386,7.82665817,127.77,127.74,0.66]
[1765894457590,16.03743667,127.77,127.74,0.66]
[1765894457790,8.2107785,127.76,127.72,17.29944065]
[1765894457951,8.2107785,127.76,127.73,0.66]
[1765894458152,8.2107785,127.74,127.7,0.66]
[1765894458390,8.2107785,127.71,127.67,7.83262611]
[1765894458688,8.2107785,127.69,127.67,0.66]
[1765894458891,8.2107785,127.69,127.66,8.49311313]
[1765894459068,8.2107785,127.67,127.64,17.05409652]
[1765894459385,8.2107785,127.67,127.64,8.49452703]
[1765894459572,8.2107785,127.67,127.64,0.66]
[1765894459774,16.7707785,127.68,127.66,0.66]
[1765894459973,8.2107785,127.69,127.66,17.30307295]
[1765894460689,8.2107785,127.7,127.68,0.66]
[1765894460893,8.2107785,127.71,127.68,0.66]
[1765894461063,8.2107785,127.69,127.65,9.46994492]
[1765894461268,8.2107785,127.69,127.66,0.66]
[1765894461471,8.2107785,127.68,127.66,0.66]
[1765894462664,8.2107785,127.69,127.66,0.66]
[1765894462860,16.04254435,127.69,127.66,0.66]
[1765894463191,16.04254435,127.69,127.65,7.83374506]
[1765894463192,16.7707785,127.68,127.65,0.66]
[1765894463395,11.62791098,127.68,127.65,0.66]
[1765894465094,19.46025834,127.68,127.65,0.66]
[1765894465493,16.39234736,127.68,127.65,0.66]
[1765894465672,19.46025834,127.68,127.65,0.66]
[1765894466087,19.46025834,127.68,127.64,16.64418698]
[1765894466271,19.46025834,127.68,127.65,0.66]
[1765894466891,16.39234736,127.68,127.65,0.66]
[1765894467093,3.06791098,127.68,127.65,7.83374692]
[1765894467395,3.06791098,127.68,127.65,8.49374692]
[1765894468902,8.56,127.69,127.66,7.83316557]
[1765894469197,19.45943011,127.69,127.65,7.83362892]
[1765894469383,3.06791098,127.68,127.65,8.49362892]
[1765894470184,19.45943011,127.69,127.66,0.66]
[1765894470383,3.06791098,127.68,127.66,0.66]
[1765894470898,19.45943011,127.69,127.66,0.66]
[1765894471098,11.62791098,127.69,127.67,0.66]
[1765894471272,19.45939159,127.69,127.66,8.493026]
[1765894471474,24.60748547,127.69,127.66,8.493026]
[1765894472214,16.39148061,127.69,127.66,8.493026]
[1765894472509,8.56,127.69,127.67,0.66]
[1765894472706,7.83038748,127.71,127.67,0.66]
[1765894472874,16.04639234,127.71,127.67,0.66]
[1765894473693,8.21600486,127.71,127.67,0.66]
[1765894473906,8.21600486,127.69,127.66,8.80994492]
[1765894474298,8.21600486,127.69,127.66,17.36312453]
[1765894474517,16.0474769,127.69,127.66,17.36312453]
[1765894475340,16.0474769,127.69,127.66,16.64312453]
[1765894475628,16.0474769,127.69,127.67,0.72]
[1765894475831,16.04716539,127.7,127.67,0.72]
[1765894476313,16.04501918,127.73,127.69,0.72]
[1765894476502,25.21501918,127.73,127.69,0.72]
[1765894477037,8.21600486,127.72,127.69,0.72]
[1765894477235,16.99901432,127.73,127.69,0.72]
[1765894477401,8.21176323,127.72,127.69,0.72]
[1765894477799,0.61,127.72,127.65,9.28]